bitfinex-derivatives/quotes_ETHF0:USTF0_20240904
["timestamp","ask_amount","ask_price","bid_price","bid_amount"]
[1725461116921,0.8005,2427.1,2426.6,3.2078]
[1725461117228,0.80667805,2427.1,2426.6,3.61991]
[1725461117430,22.70537805,2427.1,2426.6,3.2078]
[1725461117620,22.30617805,2427.1,2426.6,3.2078]
[1725461117932,0.41207,2426.9,2426.3,3.99896]
[1725461118116,3.2078,2427.0,2426.3,3.5868]
[1725461118321,0.41207,2426.9,2426.3,3.99896]
[1725461118510,0.41206,2427.0,2426.4,0.41215]
[1725461118714,23.37859729,2427.1,2426.3,3.5868]
[1725461118715,26.58639729,2427.1,2426.3,3.2078]
[1725461118922,3.2078,2426.8,2426.3,3.2078]
[1725461119219,3.2078,2426.8,2425.2,2.19687259]
[1725461119220,3.2078,2426.5,2425.8,3.2078]
[1725461119422,4.00031,2426.6,2425.4,0.14459553]
[1725461119423,3.2078,2425.9,2425.4,0.14459553]
[1725461119617,3.2078,2425.9,2425.1,3.5747]
[1725461119618,4.04241924,2426.2,2425.1,3.5747]
[1725461119814,3.21397805,2425.9,2424.8,3.2078]
[1725461120016,3.21397805,2425.9,2425.1,0.41236]
[1725461120214,0.41228,2425.7,2425.1,3.62016]
[1725461120422,3.21397805,2425.9,2425.1,3.2078]
[1725461120620,0.41226,2425.8,2425.1,3.2078]
[1725461120829,3.21397805,2425.9,2425.8,0.41225]
[1725461120830,0.00617805,2425.9,2425.8,0.41225]
[1725461121019,0.00617805,2425.9,2425.7,3.2078]
[1725461121214,0.00617805,2425.9,2425.8,0.41225]
[1725461121426,0.00617805,2425.9,2425.8,4.53465]
[1725461121612,0.00617805,2425.9,2425.8,10.53465]
[1725461121817,0.00617805,2425.9,2425.7,3.2078]
[1725461122013,0.00617805,2425.9,2425.7,9.2078]
[1725461122226,0.00617805,2425.9,2425.8,4.53465]
[1725461122411,0.00617805,2425.9,2425.8,10.53465]
[1725461122612,0.41213,2426.6,2425.8,10.1224]
[1725461122822,0.7657,2426.7,2425.7,3.2078]
[1725461123022,0.7657,2426.7,2425.6,0.3871]
[1725461123023,2.97,2426.5,2425.3,3.5799]
[1725461123224,0.41226,2425.8,2425.3,3.5799]
[1725461123416,4.23823,2426.3,2425.3,3.5799]
[1725461123616,0.41228,2425.7,2425.6,0.00617805]
[1725461123817,3.21397805,2426.0,2425.6,0.00617805]
[1725461124018,0.41227,2425.7,2425.6,0.00617805]
[1725461124216,3.62007,2425.7,2425.6,0.00617805]
[1725461124427,13.3302,2425.7,2425.0,0.41238]
[1725461124621,0.41231,2425.5,2425.0,0.41238]
[1725461124822,0.41229,2425.6,2425.1,0.41237]
[1725461125219,0.41229,2425.6,2424.6,3.5879]
[1725461125220,22.6697,2425.8,2425.4,0.41232]
[1725461125485,0.41228,2425.7,2424.9,3.2078]
[1725461125630,0.41228,2425.7,2425.2,0.41234]
[1725461125824,0.41228,2425.7,2424.9,3.2078]
[1725461125825,1.03068,2425.7,2424.9,3.6202]
[1725461126020,25.8775,2425.8,2425.1,0.41236]
[1725461126322,25.8775,2425.8,2424.9,3.2078]
[1725461126729,0.41236,2425.2,2424.9,3.2078]
[1725461126926,0.41238,2425.1,2424.7,0.41243]
[1725461127131,6.1778,2425.5,2424.6,3.62025]
[1725461127132,4.23862,2425.4,2424.6,3.62025]
[1725461127321,0.41239,2425.0,2424.6,3.62025]
[1725461127819,0.41241,2424.9,2424.6,3.2078]
[1725461128017,1.03085,2425.3,2424.6,3.2078]
[1725461128226,2.97,2425.2,2424.3,3.2078]
[1725461128428,0.41236,2425.2,2424.8,0.41241]
[1725461128628,0.3862,2425.4,2424.3,3.2078]
[1725461128924,0.3862,2425.4,2424.4,1.03123]
[1725461129132,0.41236,2425.2,2424.8,0.41241]
[1725461129425,0.3862,2425.4,2424.8,0.41241]
[1725461129632,0.41237,2425.2,2424.8,0.41241]
[1725461129937,22.6697,2425.8,2424.9,8.36281]
[1725461129938,0.3697,2425.8,2424.9,8.36281]
[1725461130228,0.3697,2425.8,2425.3,0.41233]
[1725461130229,0.41229,2425.6,2425.3,0.41233]
[1725461130430,0.78196,2425.8,2425.0,3.2078]
[1725461130629,0.00617805,2426.0,2425.9,0.41223]
[1725461131125,0.7967,2426.9,2425.9,10.1224]
[1725461131317,2.97,2427.6,2426.7,3.2078]
[1725461131534,0.41201,2427.2,2426.7,3.61989]
[1725461131721,0.7967,2427.9,2426.3,3.2078]
[1725461131722,2.97,2427.3,2426.3,3.2078]
[1725461132222,0.00617805,2427.0,2426.6,0.00617805]
[1725461132434,8.05e-06,2427.0,2426.9,3.61986]
[1725461132626,2.14483848,2428.4,2426.9,3.61986]
[1725461132627,0.3788,2428.6,2427.0,1.03011]
[1725461132930,0.3788,2428.6,2427.9,3.2078]
[1725461133231,3.2078,2429.1,2428.2,3.2078]
[1725461133431,3.2078,2429.1,2427.3,2.97]
[1725461133432,0.41168,2429.2,2428.3,0.41182]
[1725461133628,0.41788805,2429.0,2428.5,0.00617805]
[1725461133829,0.00617805,2429.0,2428.5,0.00617805]
[1725461134130,0.41178,2428.6,2428.5,0.00617805]
[1725461134433,7.73718,2428.6,2428.5,0.00617805]
[1725461134634,0.41182,2428.4,2427.5,3.2078]
[1725461134830,13.3254,2428.6,2427.5,3.61975]
[1725461134831,0.4118,2428.5,2427.5,3.61975]
[1725461135133,3.2078,2428.3,2427.5,3.2078]
[1725461135324,0.41188,2428.0,2427.1,3.5723]
[1725461135528,0.3788,2428.2,2427.1,3.5723]
[1725461135830,3.6097,2428.4,2427.7,3.2078]
[1725461136034,3.61962,2428.4,2428.0,3.2078]
[1725461136232,2.97,2428.8,2428.0,3.2078]
[1725461136233,0.4118,2428.5,2428.0,3.2078]
[1725461136533,3.2078,2428.5,2427.5,3.2078]
[1725461136922,3.2078,2428.2,2427.3,0.00617805]
[1725461137131,3.2078,2428.4,2427.3,0.00617805]
[1725461137430,0.41196,2427.6,2427.3,0.00617805]
[1725461137836,0.41198,2427.4,2427.3,0.00617805]
[1725461138028,0.00617805,2427.7,2427.3,0.00617805]
[1725461138227,0.41195,2427.6,2427.3,0.00617805]
[1725461138726,0.41198,2427.4,2427.3,0.00617805]
[1725461138926,22.3,2427.4,2426.4,3.2078]
[1725461139122,0.41204,2427.1,2426.4,0.41214]
[1725461139332,25.27,2427.4,2426.4,3.2078]
[1725461139333,22.3,2427.4,2426.4,3.2078]
[1725461139534,25.5078,2427.4,2426.6,0.4121]
[1725461139737,25.5078,2427.4,2426.1,3.2078]
[1725461139738,2.97,2427.1,2426.1,3.2078]
[1725461139938,4.1208,2427.3,2425.8,0.41224]
[1725461139939,0.41215,2426.4,2425.8,0.41224]
[1725461140239,0.00617805,2426.3,2425.9,3.2078]
[1725461141039,0.00617805,2426.3,2425.6,3.2078]
[1725461141427,0.41834805,2426.3,2425.7,0.41226]
[1725461141623,0.00617805,2426.3,2425.6,3.2078]
[1725461142138,0.00617805,2426.3,2425.8,0.41224]
[1725461142328,0.00617805,2426.3,2425.6,3.2078]
[1725461142329,0.00617805,2426.3,2425.9,0.41223]
[1725461142732,0.00617805,2426.3,2425.6,3.2078]
[1725461142930,0.41219,2426.2,2425.6,3.2078]
[1725461143128,0.00617805,2426.3,2425.8,0.41224]
[1725461143328,0.00617805,2426.3,2425.6,3.2078]
[1725461143530,0.00617805,2426.3,2425.1,0.97121557]
[1725461143531,3.21397805,2426.3,2425.4,0.41231]
[1725461143736,3.21397805,2426.3,2425.3,3.2078]
[1725461143737,1.03049,2426.2,2425.3,3.2078]
[1725461143932,3.21397805,2426.3,2425.3,3.2078]
[1725461143933,1.03051,2426.1,2425.3,3.2078]
[1725461144134,0.41835805,2426.3,2425.7,0.41226]
[1725461144328,0.41835805,2426.3,2425.1,0.7682]
[1725461144329,0.41218,2426.2,2425.6,3.2078]
[1725461144682,0.41222,2426.0,2425.5,0.41229]
[1725461144887,3.21397805,2426.3,2425.3,3.2078]
[1725461145036,22.30617805,2426.3,2425.6,3.2078]
[1725461145237,22.30617805,2426.3,2425.9,3.2078]
[1725461145238,0.00617805,2426.3,2425.9,3.2078]
[1725461145440,0.00617805,2426.3,2426.0,0.41222]
[1725461145743,0.00617805,2426.3,2425.6,3.2078]
[1725461145931,0.4122,2426.2,2425.7,0.41226]
[1725461146127,0.4122,2426.2,2425.6,3.2078]
[1725461146128,3.21397805,2426.3,2425.6,0.41227]
[1725461146334,0.00617805,2426.3,2425.6,3.2078]
[1725461146536,0.00617805,2426.3,2426.0,0.41221]
[1725461146734,0.00617805,2426.3,2425.9,3.2078]
[1725461146934,3.2078,2427.3,2426.6,0.4121]
[1725461147137,0.41205,2427.0,2426.5,3.61992]
[1725461147443,0.41205,2427.0,2426.0,0.8008]
[1725461147444,0.41212,2426.6,2426.0,0.8008]
[1725461147735,4.23795,2427.0,2426.0,0.8008]
[1725461147736,3.2078,2427.0,2426.0,0.8008]
[1725461147939,0.00617805,2426.7,2426.3,0.41832805]
[1725461148135,0.00617805,2426.7,2426.3,0.00617805]
[1725461148337,0.41215,2426.4,2426.3,0.00617805]
[1725461148641,7.44253,2426.4,2426.3,0.00617805]
[1725461148849,4.53375,2426.4,2426.3,0.00617805]
[1725461149848,10.53375,2426.4,2426.3,0.00617805]
[1725461150238,0.41215,2426.4,2426.3,0.00617805]
[1725461150942,0.00617805,2426.7,2426.3,3.21397805]
[1725461151240,0.00617805,2426.7,2426.6,0.41211]
[1725461151641,0.00617805,2426.7,2426.3,0.00617805]
[1725461151642,4.12697805,2426.7,2426.3,0.00617805]
[1725461151835,0.00617805,2426.7,2426.4,0.41214]
[1725461152038,0.00617805,2426.7,2426.6,0.41211]
[1725461152233,0.41828805,2426.7,2426.4,3.2078]
[1725461152445,0.00617805,2426.7,2426.3,0.00617805]
[1725461152651,0.41215,2426.4,2426.3,0.00617805]
[1725461153141,4.53375,2426.4,2426.3,0.00617805]
[1725461153733,10.53375,2426.4,2426.3,0.00617805]
[1725461154449,0.41214,2426.5,2426.3,0.00617805]
[1725461154747,4.1208,2426.6,2426.3,0.00617805]
[1725461154939,0.00617805,2426.7,2426.3,0.00617805]
[1725461155136,0.00617805,2426.7,2426.6,0.41211]
[1725461155339,0.00617805,2426.7,2426.5,0.41212]
[1725461155543,0.00617805,2426.7,2426.3,3.21397805]
[1725461155847,0.00617805,2426.7,2426.6,0.41211]
[1725461156350,4.12697805,2426.7,2426.3,3.21397805]
[1725461156539,0.00617805,2426.7,2426.3,3.62613805]
[1725461156746,0.00617805,2426.7,2426.6,3.2078]
[1725461157147,4.53907805,2426.7,2426.6,3.2078]
[1725461157647,0.00617805,2426.7,2426.6,3.61991]
[1725461157848,0.00617805,2426.7,2426.6,7.74071]
[1725461158146,0.3906,2427.5,2426.6,7.3286]
[1725461158347,0.80258,2427.5,2427.1,0.41202]
[1725461158551,3.6197,2427.9,2427.5,0.41195]
[1725461158846,3.2078,2427.9,2427.3,0.41198]
[1725461159048,3.2078,2427.9,2427.2,3.2078]
[1725461159049,0.00617805,2427.8,2427.2,3.2078]
[1725461159246,0.00617805,2427.8,2427.6,3.2078]
[1725461159449,0.00617805,2427.8,2427.7,0.41193]
[1725461160345,0.00617805,2427.8,2427.6,3.2078]
[1725461160759,2.97,2428.5,2427.6,3.2078]
[1725461160760,0.41171,2429.0,2427.7,4.1192]
[1725461161048,2.66608381,2429.2,2427.7,4.1192]
[1725461161049,0.41175,2428.8,2428.3,3.61962]
[1725461161257,25.5078,2429.4,2428.4,0.41181]
[1725461161450,0.41175,2428.8,2428.3,3.61962]
[1725461161656,1.02915,2429.3,2428.0,3.2078]
[1725461161657,0.41185,2428.2,2428.0,3.2078]
[1725461161946,0.41183,2428.3,2428.0,3.2078]
[1725461162146,0.4118,2428.5,2428.0,3.61968]
[1725461162349,4.24334805,2428.8,2428.0,3.61968]
[1725461162350,0.00617805,2428.8,2428.0,3.2078]
[1725461162543,3.2078,2428.5,2428.0,3.2078]
[1725461162784,0.3751,2428.7,2427.9,0.00617805]
[1725461162942,1.44158,2428.0,2427.9,0.00617805]
[1725461163452,10.53028,2428.0,2427.1,3.2078]
[1725461163648,25.5078,2428.0,2427.1,3.2078]
[1725461163948,22.3,2428.0,2427.4,3.2078]
[1725461164148,22.3,2428.0,2427.6,0.41194]
[1725461164354,22.3,2428.0,2427.4,3.2078]
[1725461164545,22.3,2428.0,2427.7,0.41192]
[1725461164744,0.3889,2428.6,2428.1,0.41185]
[1725461164944,0.3751,2428.7,2428.1,0.41185]
[1725461165140,0.3751,2428.7,2428.0,3.2078]
[1725461165346,3.5847,2428.9,2428.2,0.41183]
[1725461165552,3.5847,2428.9,2428.3,3.2078]
[1725461165750,0.41177,2428.7,2428.3,3.61962]
[1725461165952,2.97,2428.6,2428.0,3.2078]
[1725461166150,3.2078,2428.4,2428.0,3.2078]
[1725461166347,2.97,2428.6,2428.0,3.2078]
[1725461166956,0.41186,2428.1,2428.0,3.2078]
[1725461167250,0.41186,2428.1,2427.7,0.79552]
[1725461167251,0.41189,2427.9,2427.6,0.00617805]
[1725461167450,1.02949,2428.5,2427.6,0.00617805]
[1725461167451,0.3991,2428.4,2427.6,0.00617805]
[1725461168151,0.41188,2428.0,2427.6,0.00617805]
[1725461168358,0.41187,2428.1,2427.7,0.41191]
[1725461168544,3.6069,2428.4,2427.6,0.00617805]
[1725461168764,3.2078,2428.4,2427.6,0.00617805]
[1725461168950,2.05856,2429.0,2427.8,3.2078]
[1725461168951,26.2838,2428.9,2427.8,3.2078]
[1725461169248,0.41792805,2428.8,2428.1,3.2078]
[1725461169444,0.41792805,2428.8,2427.9,1.02971]
[1725461169445,0.41792805,2428.8,2428.5,0.41179]
[1725461169644,0.00617805,2428.8,2428.4,3.2078]
[1725461169854,0.00617805,2428.8,2428.5,0.41179]
[1725461170057,0.41791805,2428.8,2428.5,0.41179]
[1725461170258,0.00617805,2428.8,2428.5,0.41179]
[1725461170561,0.00617805,2428.8,2428.6,0.41177]
[1725461170857,0.00617805,2428.8,2428.4,3.2078]
[1725461171150,0.00617805,2428.8,2428.6,0.41177]
[1725461171346,0.00617805,2428.8,2428.7,0.41176]
[1725461171743,1.02902,2429.7,2429.1,0.41168]
[1725461171953,3.2078,2429.8,2429.3,0.41165]
[1725461172158,1.02894,2429.8,2429.2,0.41166]
[1725461172357,1.02894,2429.8,2428.9,3.2078]
[1725461172358,0.41161,2429.6,2429.0,0.4117]
[1725461172551,2.97,2429.8,2428.9,0.3904]
[1725461172850,0.41169,2429.2,2429.1,0.00617805]
[1725461173448,14.76548,2429.2,2429.1,0.00617805]
[1725461173745,11.55768,2429.2,2429.1,0.00617805]
[1725461173952,16.2946,2429.2,2428.7,3.2078]
[1725461174253,16.2946,2429.2,2428.0,0.4334]
[1725461174254,1.02936,2428.8,2428.0,0.84527]
[1725461174447,4.5532,2429.1,2427.9,3.2078]
[1725461174448,0.41188,2428.0,2427.9,3.2078]
[1725461174649,0.41188,2428.0,2427.2,3.2078]
[1725461174650,0.41194,2427.7,2427.2,3.2078]
[1725461174848,0.41183,2428.3,2428.0,0.41187]
[1725461175047,0.41183,2428.3,2427.5,3.2078]
[1725461175048,0.41182,2428.4,2428.1,0.41185]
[1725461175251,0.41182,2428.4,2428.1,0.41186]
[1725461175463,0.00617805,2428.5,2428.0,0.00617805]
[1725461175754,0.00617805,2428.5,2428.1,3.2078]
[1725461175957,0.00617805,2428.5,2428.4,3.61961]
[1725461176277,4.43567,2429.1,2428.8,0.41174]
[1725461176278,0.4117,2429.1,2428.8,0.41174]
[1725461176463,0.4117,2429.1,2428.4,3.2078]
[1725461176755,0.41169,2429.2,2428.9,0.41172]
[1725461176960,0.41168,2429.2,2428.9,0.41172]
[1725461177156,0.8303,2429.8,2429.1,0.41168]
[1725461177157,0.00617805,2429.3,2429.1,0.41168]
[1725461177454,0.00617805,2429.3,2429.2,0.41167]
[1725461177650,0.00617805,2429.3,2429.2,4.52847]
[1725461178156,0.00617805,2429.3,2428.9,0.423]
[1725461178347,0.00617805,2429.3,2429.0,3.6195]
[1725461178545,0.00617805,2429.3,2429.0,3.2078]
[1725461178749,0.00617805,2429.3,2428.9,0.423]
[1725461178946,0.00617805,2429.3,2429.0,0.4117]
[1725461179153,0.00617805,2429.3,2429.2,0.41167]
[1725461179352,8.05e-06,2429.3,2429.2,0.41167]
[1725461179562,0.2,2430.0,2429.2,0.41167]
[1725461179563,0.2,2430.0,2429.2,10.1168]
[1725461179852,0.41138,2431.0,2430.6,0.41143]
[1725461180161,3.2078,2430.9,2430.3,3.2078]
[1725461180352,0.41148,2430.4,2430.0,3.61933]
[1725461180663,1.02851,2430.8,2430.2,0.4115]
[1725461180664,0.41145,2430.6,2430.2,0.4115]
[1725461180951,0.41149,2430.3,2430.0,3.21397805]
[1725461181155,1.03470805,2430.8,2430.0,3.21397805]
[1725461181156,0.00617805,2430.8,2430.0,3.21397805]
[1725461181346,4.23636,2430.7,2430.0,3.21397805]
[1725461181661,0.00617805,2430.8,2430.0,3.21397805]
[1725461181955,0.00617805,2430.8,2430.5,0.41144]
[1725461182154,0.00617805,2430.8,2430.6,0.41144]
[1725461182354,0.00617805,2430.8,2430.7,0.41142]
[1725461182745,0.00617805,2430.8,2430.7,4.1136]
[1725461183150,0.00617805,2430.8,2430.7,4.52502]
[1725461183567,3.2078,2431.7,2431.1,0.41134]
[1725461183780,3.99802,2432.0,2431.4,3.2078]
[1725461183781,1.02805,2431.9,2431.4,3.2078]
[1725461183977,1.028,2432.1,2431.4,3.2078]
[1725461184257,0.85643352,2433.6,2432.7,3.2078]
[1725461184468,6.40710058,2434.6,2431.8,34.823]
[1725461184469,0.04633353,2434.3,2433.2,6.1778]
[1725461184654,1.02716,2434.0,2433.2,3.2078]
[1725461184863,0.41098,2433.3,2433.2,3.2078]
[1725461185050,3.40946686,2433.9,2433.4,0.00616459]
[1725461185051,1.02725,2433.8,2433.4,0.00616459]
[1725461185252,1.02725,2433.8,2433.1,3.2078]
[1725461185253,4.1088,2433.8,2433.1,3.2078]
[1725461185452,3.2078,2433.9,2433.1,3.2078]
[1725461185657,3.2078,2433.9,2432.8,3.2078]
[1725461185658,4.1096,2433.8,2432.8,3.2078]
[1725461185858,4.1096,2433.8,2431.2,1.43344]
[1725461185859,0.41111,2432.6,2432.3,3.2078]
[1725461186259,1.02754,2433.1,2432.3,3.2078]
[1725461186260,0.41725459,2432.7,2432.3,3.2078]
[1725461186567,0.00616459,2432.7,2432.3,3.2078]
[1725461186856,0.00616459,2432.7,2432.6,3.2078]
[1725461187050,3.2078,2434.0,2432.6,3.2078]
[1725461187247,22.3,2434.2,2433.3,3.2078]
[1725461187452,0.41092,2433.7,2433.3,3.2078]
[1725461187652,0.41093,2433.7,2433.3,3.2078]
[1725461187855,0.41091,2433.7,2433.3,3.2078]
[1725461188052,0.41091,2433.7,2433.3,3.21396459]
[1725461188053,0.00616459,2433.7,2433.3,3.21396459]
[1725461188257,0.41093,2433.6,2433.3,3.21396459]
[1725461188454,0.00616459,2433.7,2433.3,3.21396459]
[1725461188656,0.41096,2433.4,2433.3,0.00616459]
[1725461188861,1.43838,2433.4,2433.3,0.00616459]
[1725461189065,0.41103,2433.0,2432.9,3.2078]
[1725461189255,1.02742,2433.4,2432.9,3.2078]
[1725461189456,0.41103,2433.0,2432.9,3.2078]
[1725461190062,11.13798,2433.0,2432.7,0.00616459]
[1725461190264,0.20985949,2433.4,2432.7,0.00616459]
[1725461190265,0.41106,2432.9,2432.7,0.00616459]
[1725461190459,0.4288,2433.5,2432.7,0.00616459]
[1725461190460,0.4288,2433.5,2432.8,3.2078]
[1725461190757,0.4288,2433.5,2432.7,0.00616459]
[1725461190758,0.411,2433.2,2433.1,3.2078]
[1725461191162,0.41098,2433.3,2433.1,3.2078]
[1725461191359,0.4288,2433.5,2432.7,3.21396459]
[1725461191659,1.02742,2433.4,2432.7,3.21396459]
[1725461191863,0.41106,2432.8,2432.7,3.21396459]
[1725461192061,22.3,2433.2,2432.7,3.21396459]
[1725461192260,0.41106,2432.8,2432.7,3.21396459]
[1725461193059,0.41106,2432.8,2431.8,3.2078]
[1725461193060,13.0804,2432.8,2431.8,3.2078]
[1725461193253,1.02797,2432.1,2431.5,3.2078]
[1725461193459,0.41123,2431.9,2431.5,3.2078]
[1725461193656,0.4481,2432.6,2431.8,3.2078]
[1725461193990,0.4481,2432.6,2430.8,2.97]
[1725461193991,3.2078,2432.2,2431.4,3.2078]
[1725461194108,1.02788,2432.3,2431.6,0.00616459]
[1725461194358,0.41125,2431.7,2431.6,0.00616459]
[1725461194560,0.00616459,2432.0,2431.6,0.00616459]
[1725461194760,7.32596459,2432.0,2431.6,0.00616459]
[1725461194959,0.41125,2431.7,2431.6,0.00616459]
[1725461195863,0.00616459,2432.0,2431.6,0.00616459]
[1725461196069,0.41124,2431.8,2431.6,0.00616459]
[1725461196268,0.00616459,2432.0,2431.6,0.00616459]
[1725461196568,0.41125,2431.7,2431.6,0.00616459]
[1725461196760,1.43938,2431.7,2431.6,0.00616459]
[1725461196956,5.55218,2431.7,2431.6,0.00616459]
[1725461197157,0.41125,2431.7,2431.6,0.00616459]
[1725461197362,22.3,2431.7,2431.6,0.00616459]
[1725461197562,0.00616459,2432.0,2431.6,0.00616459]
[1725461197961,0.41737459,2432.0,2431.6,0.00616459]
[1725461198166,0.41122,2431.9,2431.7,3.2078]
[1725461198359,0.00616459,2432.0,2431.7,3.2078]
[1725461198565,0.00616459,2432.0,2431.6,0.00616459]
[1725461198566,0.41125,2431.7,2431.6,0.00616459]
[1725461198962,11.55218,2431.7,2431.6,4.59e-06]
[1725461199166,12.58031,2431.7,2431.6,4.59e-06]
[1725461199476,3.2078,2432.8,2431.6,9.20780459]
[1725461199659,0.41106,2432.9,2432.7,3.2078]
[1725461199864,3.2078,2433.5,2432.3,3.2078]
[1725461199865,3.41153989,2433.2,2432.3,3.2078]
[1725461200070,2.97,2433.5,2432.4,3.2078]
[1725461200071,0.4297,2433.1,2432.4,3.2078]
[1725461200274,0.41112,2432.5,2432.4,3.2078]
[1725461200669,0.85044,2433.6,2432.6,0.41109]
[1725461200974,0.4395,2433.6,2433.0,3.2078]
[1725461201466,0.4395,2433.6,2432.4,2.97]
[1725461201467,0.41106,2432.8,2432.7,3.2078]
[1725461202067,0.00616459,2433.0,2432.7,3.2078]
[1725461202270,3.13396459,2433.5,2432.7,3.2078]
[1725461202569,0.41105,2432.9,2432.7,3.2078]
[1725461202869,1.02742,2433.4,2432.7,3.2078]
[1725461202870,3.2078,2433.2,2432.7,3.2078]
[1725461203073,1.02742,2433.4,2432.7,3.2078]
[1725461203263,0.41106,2432.8,2432.7,3.2078]
[1725461203571,0.20788781,2433.0,2432.3,3.2078]
[1725461203778,0.20788781,2433.0,2432.2,0.00616459]
[1725461203779,0.41115,2432.3,2432.2,0.00616459]
[1725461203971,3.2078,2432.6,2431.3,3.2078]
[1725461203972,0.41126,2431.7,2431.3,3.2078]
[1725461204179,0.41126,2431.7,2431.6,3.2078]
[1725461204424,0.4223,2432.5,2431.6,9.2078]
[1725461204425,0.41112,2432.5,2431.6,9.2078]
[1725461204569,0.41113,2432.5,2432.2,3.2078]
[1725461204772,0.4578,2432.7,2432.2,3.2078]
[1725461204969,0.41111,2432.6,2432.2,3.21396459]
[1725461205272,0.00616459,2432.7,2432.2,3.21396459]
[1725461205475,0.00616459,2432.7,2432.5,3.2078]
[1725461206372,0.4111,2432.6,2432.5,3.2078]
[1725461206577,0.00616459,2432.7,2432.5,3.2078]
[1725461206973,0.00616459,2432.7,2432.6,4.1112]
[1725461207168,0.00616459,2432.7,2432.5,7.319]
[1725461207567,0.00616459,2432.7,2432.6,4.5223]
[1725461207776,0.00616459,2432.7,2432.6,4.1112]
[1725461208370,0.00616459,2432.7,2432.6,10.1112]
[1725461208771,0.4271,2433.5,2432.6,10.1112]
[1725461208976,0.4271,2433.5,2433.1,3.2078]
[1725461209278,1.02742,2433.4,2432.8,3.2078]
[1725461209469,1.02746,2433.3,2432.8,3.2078]
[1725461209672,0.41105,2432.9,2432.8,3.2078]
[1725461209870,3.6349,2433.5,2432.5,3.2078]
[1725461209871,0.4111,2432.6,2432.5,3.2078]
[1725461210277,0.41109,2432.7,2432.5,3.2078]
[1725461210684,0.4111,2432.6,2432.5,3.2078]
[1725461211175,4.5223,2432.6,2432.5,3.2078]
[1725461211371,0.4111,2432.6,2432.5,3.2078]
[1725461211574,0.41105,2432.9,2432.5,7.319]
[1725461211781,0.4328,2433.0,2432.5,3.2078]
[1725461211782,22.1,2432.8,2432.5,3.2078]
[1725461212177,0.4111,2432.6,2432.5,3.2078]
[1725461212477,23.12767,2432.8,2432.2,0.00616459]
[1725461212478,0.41115,2432.3,2432.2,0.00616459]
[1725461212675,1.43903,2432.3,2432.2,0.00616459]
[1725461212876,11.55023,2432.3,2432.2,0.00616459]
[1725461213378,0.8406,2432.5,2432.2,3.21396459]
[1725461213592,0.41115,2432.4,2432.2,3.21396459]
[1725461213804,0.8406,2432.5,2432.2,3.21396459]
[1725461214081,23.1277,2432.8,2432.2,3.21396459]
[1725461214082,1.02771,2432.7,2432.2,3.21396459]
[1725461214283,1.02775,2432.6,2432.2,3.21396459]
[1725461214586,0.41115,2432.3,2432.2,3.21396459]
[1725461214777,4.5272,2432.7,2432.2,3.21396459]
[1725461214778,3.207,2432.7,2432.2,3.21396459]
[1725461214978,0.41115,2432.3,2432.2,3.21396459]
[1725461215174,1.43903,2432.3,2432.2,3.21396459]
[1725461215482,4.1112,2432.3,2432.2,3.21396459]
[1725461215672,3.207,2432.7,2432.2,7.32516459]
[1725461215876,3.207,2432.7,2431.1,0.14963746]
[1725461215877,0.41122,2431.9,2431.8,3.2078]
[1725461216580,1.43927,2431.9,2431.8,3.2078]
[1725461216781,0.41122,2431.9,2431.8,3.2078]
[1725461216981,0.41122,2431.9,2431.5,3.2078]
[1725461216982,0.41127,2431.6,2431.5,3.2078]
[1725461217181,1.43945,2431.6,2431.5,3.2078]
[1725461217483,0.4113,2431.4,2431.3,0.00616459]
[1725461217875,0.00616459,2431.8,2431.3,0.00616459]
[1725461218180,1.43956,2431.4,2431.3,0.00616459]
[1725461218585,10.5241,2431.4,2431.3,0.00616459]
[1725461218885,12.58062,2431.4,2431.3,4.59e-06]
[1725461219077,11.55236,2431.4,2431.3,4.59e-06]
[1725461219277,33.65236,2431.4,2431.3,4.59e-06]
[1725461219488,22.5113,2431.4,2431.3,4.59e-06]
[1725461219679,33.65236,2431.4,2431.3,4.59e-06]
[1725461220176,34.88324905,2431.4,2431.3,4.59e-06]
[1725461220879,38.09104905,2431.4,2431.3,4.59e-06]
[1725461221080,41.06104905,2431.4,2431.3,4.59e-06]
[1725461221281,41.06104905,2431.4,2430.1,3.2078]
[1725461221282,1.02856,2430.7,2430.1,3.2078]
[1725461221484,0.41155,2430.0,2429.8,3.2078]
[1725461221685,0.41156,2429.9,2429.8,3.2078]
[1725461221878,0.41156,2429.9,2429.5,3.2078]
[1725461221879,4.1152,2429.9,2429.5,3.2078]
[1725461222080,0.41161,2429.6,2429.5,3.2078]
[1725461222380,7.44063,2429.6,2429.5,0.00616459]
[1725461222581,11.55663,2429.6,2429.5,0.00616459]
[1725461222981,12.58565,2429.6,2429.5,4.59e-06]
[1725461223187,13.45285,2429.6,2429.5,4.59e-06]
[1725461223583,13.45285,2429.6,2428.0,3.6088]
[1725461223584,0.41184,2428.2,2428.1,3.2078]
[1725461223783,0.41177,2428.7,2428.1,3.2078]
[1725461223991,0.41177,2428.7,2427.4,1.23809053]
[1725461223992,3.2078,2429.3,2428.6,3.2078]
[1725461224190,0.8672,2429.6,2428.9,3.2078]
[1725461224395,2.66608381,2430.1,2428.4,2.97]
[1725461224396,0.41157,2429.9,2429.2,3.2078]
[1725461224690,0.41158,2429.8,2429.4,3.2078]
[1725461225125,0.41158,2429.8,2429.7,3.61939]
[1725461225126,1.295e-05,2429.8,2429.7,3.61939]
[1725461225231,1.295e-05,2429.8,2429.7,3.2078]
[1725461225490,1.295e-05,2429.8,2429.7,7.73539]
[1725461225694,1.295e-05,2429.8,2429.7,13.73539]
[1725461225997,4.20088905,2431.4,2429.7,13.3238]
[1725461225998,0.84076,2431.1,2429.7,13.3238]
[1725461226188,0.41135,2431.2,2430.6,3.2078]
[1725461226585,3.207,2431.6,2430.9,3.2078]
[1725461226789,3.207,2431.6,2430.3,2.97]